bitfinex/quotes_SOLUSD_20250310
["timestamp","ask_amount","ask_price","bid_price","bid_amount"]
[1741613495845,0.14216157,128.46,128.42,30.37473325]
[1741613496042,0.14216157,128.46,128.44,30.37473325]
[1741613496242,81.1,128.49,128.45,30.37473325]
[1741613496445,0.14216157,128.48,128.44,30.37473325]
[1741613496974,0.14216157,128.48,128.4,14.8]
[1741613496975,30.37473325,128.46,128.4,14.8]
[1741613497187,0.14216157,128.43,128.37,33.44964886]
[1741613497342,0.14216157,128.43,128.39,30.37473325]
[1741613497662,8.10432314,128.45,128.41,30.37473325]
[1741613497869,7.82,128.45,128.44,30.37473325]
[1741613498376,8.00216157,128.49,128.44,30.37473325]
[1741613498585,30.51689482,128.48,128.4,63.82438211]
[1741613498786,0.14216157,128.47,128.42,30.37473325]
[1741613498963,119.33473325,128.49,128.44,30.37473325]
[1741613499147,0.28432314,128.48,128.44,30.37473325]
[1741613499385,0.14216157,128.47,128.43,30.37473325]
[1741613499872,0.14216157,128.47,128.45,30.37473325]
[1741613500070,7.86,128.49,128.45,30.37473325]
[1741613500279,7.88,128.51,128.46,30.37473325]
[1741613500479,7.88,128.51,128.49,30.37473325]
[1741613500875,0.14216157,128.53,128.5,30.37473325]
[1741613501076,0.14216157,128.53,128.48,30.37473325]
[1741613501077,0.28432314,128.53,128.48,30.37473325]
[1741613501385,30.65905639,128.53,128.48,30.37473325]
[1741613501659,0.14216157,128.53,128.49,30.37473325]
[1741613502405,0.14216157,128.53,128.49,45.47510499]
[1741613502615,193.32,128.54,128.51,45.47510499]
[1741613502988,193.32,128.54,128.52,45.47510499]
[1741613502989,7.88,128.54,128.52,45.47510499]
[1741613503185,7.88,128.54,128.53,45.47510499]
[1741613503409,7.88,128.54,128.5,26.43144886]
[1741613503763,7.88,128.54,128.52,45.47510499]
[1741613504313,7.88,128.56,128.52,45.47510499]
[1741613504554,7.88,128.56,128.53,45.47510499]
[1741613504687,0.14216157,128.56,128.5,26.43144886]
[1741613504884,0.14216157,128.56,128.51,45.47510499]
[1741613505276,0.14216157,128.56,128.51,7.7814]
[1741613505529,0.14216157,128.55,128.51,7.7814]
[1741613505723,0.14216157,128.53,128.46,6.1289]
[1741613505890,8.00216157,128.52,128.47,53.25900499]
[1741613506087,0.14216157,128.51,128.44,19.4629]
[1741613506414,134.57726656,128.52,128.47,45.47510499]
[1741613506415,89.10216157,128.52,128.47,45.47510499]
[1741613506713,0.14216157,128.51,128.45,45.47510499]
[1741613506920,0.14216157,128.48,128.44,45.47510499]
[1741613507104,0.14216157,128.48,128.46,45.47510499]
[1741613507283,0.14216157,128.48,128.46,53.25930499]
[1741613507488,0.14216157,128.48,128.46,45.47510499]
[1741613507858,0.14216157,128.49,128.47,45.47510499]
[1741613508337,7.86,128.52,128.48,45.47510499]
[1741613508479,7.86,128.52,128.46,45.47510499]
[1741613508480,45.47510499,128.51,128.46,45.47510499]
[1741613508692,0.14216157,128.49,128.45,45.47510499]
[1741613508914,0.14216157,128.49,128.46,45.47510499]
[1741613509105,0.14216157,128.49,128.44,7.7857]
[1741613509413,0.28432314,128.5,128.45,45.47510499]
[1741613509743,8.06642314,128.5,128.45,45.47510499]
[1741613510088,0.28432314,128.5,128.46,45.47510499]
[1741613510292,0.28432314,128.5,128.47,45.47510499]
[1741613510508,0.14216157,128.5,128.47,45.47510499]
[1741613510823,0.28432314,128.5,128.46,45.47510499]
[1741613511187,0.28432314,128.5,128.47,45.47510499]
[1741613511398,0.28432314,128.5,128.45,7.7851]
[1741613511604,0.28432314,128.48,128.44,53.32380499]
[1741613511794,81.1,128.51,128.47,45.47510499]
[1741613511998,0.28432314,128.5,128.46,45.47510499]
[1741613512381,0.14216157,128.5,128.46,45.47510499]
[1741613512580,0.28432314,128.5,128.44,7.8487]
[1741613512811,0.28432314,128.5,128.46,45.47510499]
[1741613512986,0.14216157,128.5,128.46,45.47510499]
[1741613513304,0.14216157,128.5,128.45,71.90985385]
[1741613513813,8.08216157,128.5,128.46,45.47510499]
[1741613513980,8.08216157,128.5,128.47,45.47510499]
[1741613514190,0.14216157,128.52,128.47,45.47510499]
[1741613514600,45.61726656,128.52,128.45,53.26020499]
[1741613514913,0.14216157,128.51,128.46,45.47510499]
[1741613515305,53.25720499,128.5,128.44,45.53810499]
[1741613515510,0.14216157,128.49,128.44,53.32350499]
[1741613515793,0.14216157,128.49,128.45,45.47510499]
[1741613516179,80.77216157,128.48,128.44,0.063]
[1741613516393,0.28432314,128.47,128.44,0.063]
[1741613516704,45.47510499,128.46,128.44,0.063]
[1741613517017,80.91432314,128.47,128.44,53.32380499]
[1741613517382,80.91432314,128.47,128.44,45.53810499]
[1741613517608,80.91432314,128.47,128.44,0.063]
[1741613518092,80.91432314,128.47,128.44,7.8486]
[1741613518275,80.91432314,128.47,128.44,0.063]
[1741613518480,80.70899174,128.47,128.44,0.063]
[1741613518680,0.14216157,128.46,128.44,0.063]
[1741613519396,45.61726656,128.45,128.44,0.063]
[1741613519564,126.3262583,128.45,128.44,0.063]
[1741613520068,45.61726656,128.45,128.44,0.063]
[1741613520266,0.14216157,128.45,128.44,0.063]
[1741613520470,64.26691542,128.45,128.44,0.063]
[1741613520681,0.28432314,128.41,128.34,7.7918]
[1741613520979,0.28432314,128.41,128.31,0.063]
[1741613520980,20.0,128.33,128.31,0.063]
[1741613521178,20.14216157,128.32,128.31,0.063]
[1741613521377,0.14216157,128.32,128.31,0.063]
[1741613521682,7.96,128.34,128.31,0.063]
[1741613521883,7.96,128.34,128.31,45.53810499]
[1741613521884,0.14216157,128.33,128.31,45.53810499]
[1741613522092,7.96,128.34,128.32,45.47510499]
[1741613522293,0.14216157,128.33,128.31,45.53810499]
[1741613522504,0.28432314,128.33,128.31,0.063]
[1741613522679,45.75942813,128.33,128.31,0.063]
[1741613523093,20.28432314,128.32,128.31,0.063]
[1741613523488,65.75942813,128.32,128.31,0.063]
[1741613523788,0.28432314,128.31,128.25,0.063]
[1741613523987,45.47510499,128.3,128.25,45.53810499]
[1741613524316,7.98,128.29,128.25,7.8601]
[1741613524519,7.98,128.29,128.27,30.42848921]
[1741613524806,215.96848921,128.31,128.26,30.42848921]
[1741613525012,50.57065078,128.28,128.25,0.063]
[1741613525181,30.42848921,128.27,128.25,0.063]
[1741613525380,81.24216157,128.26,128.25,0.063]
[1741613525586,27.93876157,128.26,128.25,0.063]
[1741613525818,50.57065078,128.26,128.25,0.063]
[1741613526306,20.14216157,128.26,128.25,0.063]
[1741613526722,92.2836675,128.26,128.25,0.063]
[1741613527485,84.4870675,128.26,128.25,0.063]
[1741613527700,65.97958021,128.26,128.25,0.063]
[1741613527910,84.62922907,128.26,128.25,0.063]
[1741613528214,65.97958021,128.26,128.25,0.063]
[1741613528429,18.64964886,128.25,128.2,0.063]
[1741613528598,45.97958021,128.21,128.2,0.063]
[1741613528803,258.44922907,128.21,128.2,0.063]
[1741613529188,0.28432314,128.19,128.18,0.063]
[1741613529391,72.43012907,128.19,128.13,0.063]
[1741613529592,45.97958021,128.14,128.13,0.063]
[1741613529790,54.21958021,128.14,128.13,0.063]
[1741613530624,54.21958021,128.14,128.11,0.03]
[1741613530625,0.28432314,128.13,128.11,0.03]
[1741613530921,45.97958021,128.12,128.11,0.03]
[1741613531122,64.62922907,128.12,128.11,0.03]
[1741613531713,64.62922907,128.12,128.07,0.063]
[1741613531714,0.14216157,128.11,128.07,0.063]
[1741613531904,45.83741864,128.08,128.07,0.063]
[1741613532244,72.8470675,128.08,128.07,0.063]
[1741613532395,63.5014675,128.08,128.07,0.063]
[1741613532908,63.5014675,128.08,128.06,0.063]
[1741613532909,45.69525707,128.08,128.06,0.063]
[1741613533121,65.69525707,128.07,128.06,0.063]
[1741613533316,65.69525707,128.07,127.98,53.88280607]
[1741613533520,65.69525707,128.07,127.98,0.374049]
[1741613533521,45.69525707,128.01,127.98,0.374049]
[1741613533695,8.54,128.0,127.98,0.374049]
[1741613534014,8.54,128.0,127.98,8.187649]
[1741613534216,54.23525707,128.0,127.98,0.374049]
[1741613534399,45.83741864,127.99,127.98,0.374049]
[1741613534797,64.4870675,127.99,127.98,0.374049]
[1741613535107,20.0,127.96,127.94,0.03]
[1741613535310,20.0,127.96,127.84,15.1]
[1741613535311,54.65958021,127.95,127.84,19.5547]
[1741613535502,0.28432314,127.9,127.86,45.69525707]
[1741613535709,9.00432314,127.9,127.87,45.69525707]
[1741613535904,8.86216157,127.9,127.85,18.64964886]
[1741613536114,8.86216157,127.9,127.87,45.69525707]
[1741613536423,8.86216157,127.9,127.84,19.5547]
[1741613536424,8.72,127.9,127.88,45.69525707]
[1741613536734,0.28432314,127.89,127.84,19.5547]
[1741613536913,8.72,127.9,127.88,45.69525707]
[1741613537111,8.72,127.9,127.89,45.69525707]
[1741613537416,0.28432314,127.89,127.81,27.3833]
[1741613537636,45.83741864,127.86,127.81,7.8241]
[1741613537849,7.8193,127.89,127.8,7.8245]
[1741613537850,45.83741864,127.84,127.8,7.8245]
[1741613538007,0.14216157,127.83,127.78,45.69525707]
[1741613538206,0.14216157,127.83,127.79,45.69525707]
[1741613538532,194.88,127.9,127.83,18.64964886]
[1741613538834,45.69525707,127.87,127.8,18.64964886]
[1741613539009,0.14216157,127.86,127.76,15.1]
[1741613539329,0.14216157,127.84,127.8,45.69525707]
[1741613539630,8.98,127.85,127.82,45.69525707]
[1741613539837,8.98,127.85,127.8,27.3861]
[1741613539838,0.14216157,127.84,127.8,53.51955707]
[1741613540130,0.14216157,127.84,127.78,53.52115707]
[1741613540131,45.83741864,127.84,127.78,53.52115707]
[1741613540302,45.69525707,127.83,127.78,53.52115707]
[1741613540507,0.14216157,127.84,127.79,45.69525707]
[1741613540702,45.83741864,127.84,127.78,7.8259]
[1741613541003,45.69525707,127.83,127.78,7.8259]
[1741613541221,45.83741864,127.84,127.78,53.52115707]
[1741613541420,65.69525707,127.81,127.74,7.8284]
[1741613541623,81.1,127.83,127.74,7.8284]
[1741613541624,45.83741864,127.8,127.74,7.8284]
[1741613541814,9.26216157,127.8,127.74,7.8284]
[1741613542214,20.0,127.77,127.73,2.6814133]
[1741613542414,91.67483728,127.74,127.69,7.8308]
[1741613542635,91.67483728,127.74,127.6,23.42722606]
[1741613542636,91.39051414,127.7,127.6,22.252814]
[1741613542806,11.16,127.73,127.5,6.15457556]
[1741613542807,45.69525707,127.61,127.5,6.15457556]
[1741613543125,9.54,127.61,127.5,22.252814]
[1741613543329,9.54,127.61,127.48,15.1]
[1741613543535,20.0,127.58,127.47,16.8814133]
[1741613543734,9.54,127.61,127.47,26.7263133]
[1741613543912,9.54,127.61,127.48,2.0]
[1741613544238,17.3765,127.61,127.47,2.6814133]
[1741613544404,2.0,127.66,127.5,45.19525707]
[1741613544605,45.69525707,127.61,127.5,59.39525707]
[1741613544839,20.0,127.63,127.47,34.5721133]
[1741613544840,45.69525707,127.59,127.47,34.5721133]
[1741613545016,45.69525707,127.6,127.47,24.7259133]
[1741613545206,20.0,127.61,127.47,25.90201554]
[1741613545409,20.0,127.61,127.47,24.7259133]
[1741613545712,45.69525707,127.59,127.53,45.69525707]
[1741613545907,45.69525707,127.58,127.52,45.69525707]
[1741613546224,27.8364,127.61,127.47,2.6814133]
[1741613546429,45.69525707,127.54,127.47,2.6814133]
[1741613546636,10.38,127.53,127.47,1.6814133]
[1741613546810,10.4,127.53,127.5,45.69525707]
[1741613547007,10.4,127.58,127.52,45.69525707]
[1741613547213,196.78,127.62,127.55,45.69525707]
[1741613547439,196.78,127.62,127.56,45.69525707]
[1741613547639,45.69525707,127.6,127.53,20.0]
[1741613547811,45.69525707,127.59,127.53,65.69525707]
[1741613548014,250.31105707,127.62,127.47,15.8814133]
[1741613548015,45.69525707,127.57,127.47,15.8814133]
[1741613548232,81.1,127.6,127.54,45.69525707]
[1741613548432,196.78,127.62,127.56,45.69525707]
[1741613548737,196.78,127.62,127.53,20.0]
[1741613548738,45.69525707,127.59,127.53,20.0]
[1741613548908,45.69525707,127.54,127.47,1.6814133]
[1741613549116,45.69525707,127.51,127.47,1.6814133]
[1741613549342,45.69525707,127.48,127.47,1.6814133]
[1741613549715,45.69525707,127.49,127.47,1.6814133]
[1741613549919,157.35525707,127.48,127.47,1.6814133]
[1741613550122,157.35525707,127.48,127.37,45.69525707]
[1741613550420,157.35525707,127.48,127.34,45.75825707]
[1741613550421,83.1,127.47,127.34,45.75825707]
[1741613550608,45.69525707,127.41,127.36,45.69525707]
[1741613550812,45.69525707,127.41,127.34,0.063]
[1741613550813,45.69525707,127.37,127.34,0.063]
[1741613551048,45.69525707,127.38,127.34,0.063]
[1741613551226,81.1,127.4,127.34,0.063]
[1741613551424,45.69525707,127.35,127.34,0.063]
[1741613551616,7.8492,127.4,127.34,0.063]
[1741613551810,10.56,127.39,127.35,45.69525707]
[1741613552149,45.69525707,127.38,127.34,0.063]
[1741613552348,10.56,127.39,127.34,0.063]
[1741613552713,7.40079229,127.48,127.34,0.063]
[1741613552714,91.72,127.47,127.38,45.69525707]
[1741613552918,91.72,127.47,127.39,18.64964886]
[1741613552919,0.14216157,127.46,127.39,18.64964886]
[1741613553123,186.64,127.48,127.44,45.69525707]
[1741613553434,0.14216157,127.53,127.46,45.69525707]
[1741613553614,0.14216157,127.5,127.45,45.69525707]
[1741613553814,10.66,127.54,127.44,65.69525707]
[1741613554127,10.66,127.54,127.41,24.88]
[1741613554128,0.14216157,127.47,127.43,20.0]
[1741613554432,0.28432314,127.52,127.43,20.0]
[1741613554631,0.28432314,127.49,127.43,20.0]
[1741613554951,0.28432314,127.52,127.47,45.69525707]
[1741613555246,19.5978,127.57,127.5,45.69525707]
[1741613555247,232.47525707,127.55,127.5,45.69525707]
[1741613555548,232.47525707,127.55,127.46,18.64964886]
[1741613555549,186.78,127.55,127.49,20.0]
[1741613555743,186.78,127.55,127.52,45.69525707]
[1741613555926,186.78,127.55,127.49,20.0]
[1741613556130,81.1,127.61,127.5,64.34490593]
[1741613556449,186.8,127.62,127.59,45.69525707]
[1741613556626,186.8,127.62,127.56,45.69525707]
[1741613556952,137.61525707,127.68,127.61,45.69525707]
[1741613557126,10.82,127.68,127.64,45.69525707]
[1741613557454,186.8,127.69,127.64,45.69525707]
[1741613557748,186.8,127.69,127.59,18.64964886]
[1741613557749,45.69525707,127.66,127.59,14.2]
[1741613557917,45.97958021,127.64,127.56,45.69525707]
[1741613558118,0.28432314,127.64,127.53,20.0]
[1741613558322,0.14216157,127.56,127.51,45.69525707]
[1741613558516,0.14216157,127.58,127.5,64.34490593]
[1741613558741,0.14216157,127.58,127.51,45.69525707]
[1741613558914,0.14216157,127.54,127.47,15.7081]
[1741613559119,45.69525707,127.54,127.47,1.5081]
[1741613559422,0.14216157,127.5,127.41,22.048]
[1741613559622,0.14216157,127.49,127.44,45.69525707]
[1741613559928,7.98406157,127.52,127.48,45.69525707]
[1741613559929,0.14216157,127.52,127.48,45.69525707]
[1741613560328,0.28432314,127.52,127.44,45.69525707]
[1741613560652,0.28432314,127.52,127.47,45.69525707]
[1741613560825,45.69525707,127.48,127.39,14.2822]
[1741613561017,45.83741864,127.46,127.41,45.69525707]
[1741613561224,45.69525707,127.46,127.4,45.69525707]
[1741613561526,45.69525707,127.46,127.38,1.593]
[1741613561527,10.82,127.47,127.43,45.69525707]
[1741613561961,10.8,127.52,127.4,18.64964886]
[1741613562126,10.8,127.52,127.49,45.69525707]
[1741613562455,45.83741864,127.51,127.46,45.69525707]
[1741613562753,10.8,127.52,127.44,20.0]
[1741613562962,0.14216157,127.51,127.44,20.0]
[1741613563257,0.14216157,127.51,127.43,45.69525707]
[1741613563431,18.6419,127.52,127.38,15.793]
[1741613563432,0.14216157,127.46,127.38,1.593]
[1741613563637,45.69525707,127.43,127.34,0.063]
[1741613563840,45.69525707,127.43,127.34,7.9159]
[1741613564038,45.69525707,127.42,127.36,45.69525707]
[1741613564258,0.14216157,127.41,127.39,20.0]
[1741613564559,0.28432314,127.45,127.39,20.0]
[1741613564560,0.14216157,127.43,127.39,45.69525707]
[1741613564726,0.14216157,127.43,127.37,20.0]
[1741613564926,45.69525707,127.42,127.37,20.0]
[1741613565132,45.69525707,127.42,127.39,20.0]
[1741613565433,0.28432314,127.45,127.39,65.69525707]
[1741613565737,0.28432314,127.45,127.37,20.0]
[1741613565738,45.69525707,127.43,127.37,20.0]
[1741613565927,0.14216157,127.41,127.37,20.0]
[1741613566125,0.14216157,127.41,127.36,45.69525707]
[1741613566325,0.14216157,127.41,127.34,0.063]
[1741613566521,0.14216157,127.42,127.37,45.69525707]
[1741613566762,45.83741864,127.42,127.36,45.69525707]
[1741613566926,0.14216157,127.42,127.37,45.69525707]
[1741613567431,0.14216157,127.43,127.38,45.69525707]
[1741613567635,45.83741864,127.44,127.38,45.69525707]
[1741613567853,45.69525707,127.43,127.37,45.69525707]
[1741613568231,45.83741864,127.44,127.38,45.69525707]
[1741613568442,45.69525707,127.43,127.38,45.69525707]
[1741613568841,0.14216157,127.44,127.4,45.69525707]
[1741613569035,0.14216157,127.44,127.38,65.69525707]
[1741613569036,0.28432314,127.44,127.38,65.69525707]
[1741613569252,0.28432314,127.44,127.38,20.0]
[1741613569253,45.69525707,127.43,127.38,20.0]
[1741613569463,45.69525707,127.43,127.36,45.69525707]
[1741613569660,45.69525707,127.43,127.37,45.69525707]
[1741613569962,0.14216157,127.44,127.39,45.69525707]
[1741613570150,0.14216157,127.44,127.4,45.69525707]
[1741613570330,10.8,127.45,127.38,45.69525707]
[1741613570534,10.8,127.45,127.44,45.69525707]
[1741613570832,10.8,127.45,127.42,45.69525707]
[1741613571035,10.8,127.45,127.4,45.69525707]
[1741613571268,10.8,127.45,127.43,45.69525707]
[1741613571759,10.8,127.45,127.4,7.849]
[1741613572050,45.69525707,127.43,127.37,7.8509]
[1741613572266,45.69525707,127.43,127.37,45.69525707]
[1741613572846,45.69525707,127.42,127.36,0.063]
[1741613573152,45.69525707,127.4,127.36,0.063]
[1741613573358,45.69525707,127.43,127.38,45.69525707]
[1741613573535,45.69525707,127.44,127.38,45.69525707]
[1741613573732,0.14216157,127.44,127.38,45.69525707]
[1741613573951,0.14216157,127.41,127.37,45.69525707]
[1741613574155,0.14216157,127.41,127.36,7.9145]
[1741613574156,0.14216157,127.37,127.36,0.063]
[1741613574331,56.79958021,127.37,127.36,0.063]
[1741613574533,56.65741864,127.37,127.36,0.063]
[1741613574844,56.79958021,127.37,127.36,0.063]
[1741613575738,64.65068021,127.37,127.36,0.063]
[1741613575937,56.79958021,127.37,127.36,0.063]
[1741613576150,164.40032907,127.37,127.36,0.063]
[1741613576458,0.28432314,127.34,127.24,27.507]
[1741613576655,0.14216157,127.34,127.3,45.69525707]
[1741613576871,187.0,127.36,127.27,18.64964886]
[1741613577035,0.28432314,127.35,127.24,66.8028]
[1741613577236,0.14216157,127.33,127.29,45.69525707]
[1741613577438,10.9,127.33,127.29,45.69525707]
[1741613577754,10.9,127.33,127.32,45.69525707]
[1741613578066,10.9,127.33,127.31,53.54985707]
[1741613578234,10.9,127.33,127.26,62.59525707]
[1741613578558,10.9,127.33,127.29,45.69525707]
[1741613579033,10.9,127.33,127.27,27.5005]
[1741613579034,10.9,127.33,127.3,45.69525707]
[1741613579234,10.9,127.33,127.27,27.5005]
[1741613579555,10.9,127.33,127.27,7.8573]
[1741613579556,56.59525707,127.33,127.27,7.8573]
[1741613579734,10.9,127.33,127.27,7.8573]
[1741613579939,10.9,127.33,127.23,0.063]
[1741613579940,20.0,127.3,127.23,0.063]
[1741613580261,10.9,127.33,127.23,7.9226]
[1741613580568,45.69525707,127.25,127.23,0.063]
[1741613580740,45.69525707,127.24,127.23,0.063]
[1741613581065,45.97958021,127.24,127.23,0.063]
[1741613581269,0.28432314,127.23,127.12,27.5318]
[1741613581476,0.14216157,127.19,127.14,45.69525707]
[1741613581639,11.76216157,127.19,127.15,45.69525707]
[1741613581835,11.76216157,127.19,127.09,66.8814]
[1741613582057,45.69525707,127.11,127.05,7.8709]
[1741613582342,45.69525707,127.11,127.05,8.42244088]
[1741613582343,45.69525707,127.09,127.05,8.42244088]
[1741613582646,45.69525707,127.09,127.05,0.55154088]
[1741613582647,0.14216157,127.07,127.05,0.55154088]
[1741613582851,0.14216157,127.09,127.05,0.55154088]
[1741613582852,45.83741864,127.06,127.05,0.55154088]
[1741613583168,0.14216157,127.09,127.05,0.55154088]
[1741613583340,187.1,127.1,127.05,0.55154088]
[1741613583537,45.83741864,127.09,127.05,0.55154088]
[1741613583757,0.14216157,127.06,127.05,0.55154088]
[1741613584066,30.933972,127.06,127.05,0.55154088]
[1741613584262,76.62922907,127.06,127.05,0.55154088]
[1741613584785,57.85741864,127.06,127.05,0.55154088]
[1741613585148,76.5070675,127.06,127.05,0.55154088]
[1741613585347,76.5070675,127.06,126.96,2.7440884]
[1741613585348,0.14216157,127.05,126.96,2.7440884]
[1741613585546,0.14216157,127.05,126.98,45.69525707]
[1741613585547,81.24216157,127.05,126.98,45.69525707]
[1741613585862,12.02,127.06,127.02,45.69525707]
[1741613586065,187.2,127.11,127.05,45.69525707]
[1741613586273,187.2,127.11,126.97,27.5654]
[1741613586570,0.14216157,127.1,127.03,45.69525707]
[1741613586771,187.2,127.11,126.99,14.08]
[1741613587063,187.2,127.11,127.08,45.69525707]
[1741613587282,187.2,127.11,126.98,1.592]
[1741613587283,0.14216157,127.1,126.98,1.592]
[1741613587449,0.14216157,127.1,126.97,83.8447]
[1741613587450,45.69525707,127.04,126.97,27.5654]
[1741613587762,12.14,127.04,126.97,27.5654]
[1741613587967,12.14,127.04,126.98,45.69525707]
[1741613588269,12.14,127.04,126.97,27.5654]
[1741613588270,0.14216157,127.03,126.97,53.57105707]
[1741613588438,0.14216157,127.03,126.97,7.8758]
[1741613588649,0.14216157,127.03,126.97,27.5654]
[1741613588845,0.14216157,127.03,126.99,45.69525707]
[1741613589049,12.14,127.04,126.97,7.8758]
[1741613589274,12.14,127.04,127.01,45.69525707]
[1741613589473,12.14,127.04,127.03,45.69525707]
[1741613589770,187.2,127.11,127.03,45.69525707]
[1741613589771,12.2,127.09,127.04,7.8715]
[1741613589975,187.2,127.11,127.04,7.8715]
[1741613590153,0.14216157,127.1,127.06,45.69525707]
[1741613590354,187.2,127.11,127.08,45.69525707]
[1741613590553,187.2,127.11,127.1,45.69525707]
[1741613590872,12.2,127.15,127.1,45.69525707]
[1741613591074,187.44,127.18,127.13,45.69525707]
[1741613591285,12.2,127.23,127.17,45.69525707]
[1741613591484,12.2,127.23,127.19,45.69525707]
[1741613591774,12.2,127.23,127.2,7.8616]
[1741613592075,0.28432314,127.2,127.1,27.5373]
[1741613592272,44.63131864,127.21,127.15,45.69525707]
[1741613592451,0.14216157,127.19,127.08,7.869]
[1741613592652,45.69525707,127.12,127.06,7.8702]
[1741613592847,12.22,127.13,127.06,7.8702]
[1741613593068,12.22,127.13,127.08,45.69525707]
[1741613593575,12.22,127.13,127.09,45.69525707]
[1741613593781,12.22,127.13,127.12,45.69525707]
[1741613593993,187.4,127.15,127.12,53.56175707]
[1741613594295,187.4,127.15,127.08,82.26735707]
[1741613594296,187.4,127.15,127.13,45.69525707]
[1741613594585,187.4,127.15,127.14,45.69525707]
[1741613594883,0.14216157,127.21,127.14,91.39051414]
[1741613595058,280.7,127.22,127.18,45.69525707]
[1741613595059,199.6,127.22,127.18,45.69525707]
[1741613595259,199.6,127.22,127.17,45.69525707]
[1741613595465,199.6,127.22,127.18,45.69525707]
[1741613595670,0.14216157,127.21,127.17,45.69525707]
[1741613595889,45.83741864,127.21,127.09,16.9]
[1741613596112,45.69525707,127.19,127.1,7.8678]
[1741613596398,0.14216157,127.2,127.08,7.8688]
[1741613596399,45.69525707,127.15,127.08,7.8688]
[1741613596561,45.69525707,127.12,127.05,4.96386792]
[1741613596760,0.14216157,127.14,127.05,4.96386792]
[1741613596761,45.83741864,127.14,127.05,4.96386792]
[1741613596974,12.22,127.15,127.09,45.69525707]
[1741613597188,12.24,127.2,127.06,35.54964886]
[1741613597376,45.69525707,127.19,127.07,18.64964886]
[1741613597573,0.14216157,127.18,127.06,18.64964886]
[1741613597792,8.00796157,127.14,127.05,12.83476792]
[1741613597996,12.24,127.13,127.09,45.69525707]
[1741613598298,12.24,127.13,127.11,45.69525707]
[1741613598475,12.24,127.13,127.06,18.64964886]
[1741613598672,65.34995707,127.2,127.12,45.69525707]
[1741613598673,12.22,127.18,127.12,45.69525707]
[1741613598898,0.14216157,127.21,127.09,35.54964886]
[1741613599105,187.4,127.22,127.16,45.69525707]
[1741613599273,187.4,127.22,127.19,45.69525707]
[1741613599761,187.4,127.22,127.18,45.69525707]
[1741613600387,187.4,127.22,127.15,18.64964886]
[1741613600698,187.4,127.22,127.17,45.69525707]
[1741613600897,187.4,127.22,127.15,4.96386792]
[1741613600898,187.4,127.22,127.19,45.69525707]
[1741613601197,187.4,127.22,127.21,45.69525707]
[1741613601405,187.4,127.22,127.2,45.69525707]
[1741613601611,187.4,127.22,127.19,45.69525707]
[1741613601773,187.4,127.22,127.18,45.69525707]
[1741613601972,45.69525707,127.21,127.15,50.65912499]
[1741613602191,187.4,127.22,127.17,45.69525707]
[1741613602705,187.4,127.22,127.15,4.96386792]
[1741613602999,12.22,127.22,127.17,45.69525707]
[1741613603298,12.22,127.22,127.15,4.96386792]
[1741613603597,12.22,127.22,127.16,45.69525707]
[1741613603598,57.91525707,127.22,127.16,45.69525707]
[1741613603769,12.22,127.22,127.18,45.69525707]
[1741613603972,12.22,127.22,127.2,45.69525707]
[1741613604186,12.22,127.22,127.18,45.69525707]
[1741613604389,12.22,127.22,127.16,26.51374886]
[1741613604597,187.4,127.25,127.17,18.64964886]
[1741613604783,45.69525707,127.23,127.16,24.7641]
[1741613604969,195.2587,127.25,127.19,45.69525707]
[1741613604970,187.4,127.25,127.19,45.69525707]
[1741613605201,240.95395707,127.25,127.19,45.69525707]
[1741613605405,7.8548,127.31,127.22,45.69525707]
[1741613605573,53.54885707,127.33,127.26,45.69525707]
[1741613605775,45.69525707,127.29,127.23,45.69525707]
[1741613605979,7.8554,127.3,127.23,45.69525707]
[1741613606295,12.28,127.34,127.24,18.64964886]
[1741613606474,57.97525707,127.34,127.28,45.69525707]
[1741613606801,45.69525707,127.33,127.28,45.69525707]
[1741613607010,57.97525707,127.34,127.28,45.69525707]
[1741613607179,57.97525707,127.34,127.24,18.64964886]
[1741613607180,187.4,127.36,127.33,45.69525707]
[1741613607374,0.063,127.37,127.35,45.69525707]
[1741613607592,57.95525707,127.36,127.26,45.69525707]
[1741613607792,12.26,127.36,127.29,45.69525707]